[Event "IIFL Wealth 4th Mumbai Open"]
[Site "Mumbai"]
[Date "2019.01.07"]
[Round "9"]
[White "Abhinessh S"]
[Black "Aditya Varun Gampa"]
[Result "0-1"]
[ECO "B40"]
[WhiteElo "1790"]
[BlackElo "1809"]
[Annotator "NA RC"]
[PlyCount "120"]
[EventDate "2018.12.30"]
[EventType "swiss"]
[EventCountry "IND"]
[SourceTitle "playchess.com"]
[Source "ChessBase"]
[SourceQuality "1"]
[TimeControl "40/5400+30:1800+30"]

1. e4 {[%emt 0:00:00]} c5 {[%emt 0:06:15]} 2. Nf3 {[%emt 0:00:00]} e6 {[%emt 0:00:06]} 3. c3 {[%emt 0:00:02]} Nf6 {[%emt 0:01:49]} 4. d3 {[%emt 0:08:36]} d5 {[%emt 0:02:03]} 5. Qc2 {[%emt 0:02:39]} Nc6 {[%emt 0:01:21]} 6. Be2 {[%emt 0:02:23]} Bd6 {[%emt 0:00:57]} 7. O-O {[%emt 0:01:12]} O-O {[%emt 0:02:27]} 8. Bg5 {[%emt 0:03:35]} b6 {[%emt 0:02:31]} 9. Nbd2 {[%emt 0:01:36]} h6 {[%emt 0:01:47]} 10. Bh4 {[%emt 0:01:52]} Bb7 {[%emt 0:03:05]} 11. Rfe1 {[%emt 0:00:15]} Rc8 {[%emt 0:00:48]} 12. Rad1 {[%emt 0:03:24]} Be7 {[%emt 0:01:18]} 13. Bg3 {[%emt 0:00:55]} Nh5 {[%emt 0:01:15]} 14. e5 {[%emt 0:20:18]} Nxg3 {[%emt 0:00:54]} 15. hxg3 {[%emt 0:00:07]} Qc7 {[%emt 0:06:32]} 16. Bf1 {[%emt 0:00:15]} b5 {[%emt 0:01:06]} 17. Qb1 {[%emt 0:01:45]} a5 {[%emt 0:05:21]} 18. a4 {[%emt 0:07:45]} bxa4 {[%emt 0:02:34]} 19. Qa2 {[%emt 0:01:59]} Ba6 {[%emt 0:01:01]} 20. Qxa4 {[%emt 0:00:35]} Rb8 {[%emt 0:00:46]} 21. Rb1 {[%emt 0:03:15]} d4 {[%emt 0:00:43]} 22. Qc2 {[%emt 0:08:58]} Rb7 {[%emt 0:00:52]} 23. cxd4 {[%emt 0:14:04]} Nb4 {[%emt 0:01:57]} 24. Qc3 {[%emt 0:01:32]} cxd4 {[%emt 0:00:30]} 25. Nxd4 {[%emt 0:02:06]} Rd8 {[%emt 0:01:33]} 26. N2f3 {[%emt 0:06:40]} Qb6 {[%emt 0:01:08]} 27. Re4 {[%emt 0:03:57]} Rbd7 {[%emt 0:04:47]} 28. Nb3 {[%emt 0:03:41]} Rxd3 {[%emt 0:04:38]} 29. Bxd3 {[%emt 0:00:19]} Rxd3 {[%emt 0:00:21]} 30. Qe1 {[%emt 0:00:40]} Rxb3 {[%emt 0:00:13]} 31. Rg4 {[%emt 0:00:30]} Nd3 {[%emt 0:00:47]} 32. Qd2 {[%emt 0:00:23]} Nxf2 {[%emt 0:02:03]} 33. Qxf2 {[%emt 0:00:23]} Bc5 {[%emt 0:00:06]} 34. Nd4 {[%emt 0:00:14]} Rd3 {[%emt 0:00:09]} 35. Qf6 {[%emt 0:00:47]} Bf8 {[%emt 0:01:37]} 36. Rf1 {[%emt 0:00:37]} Qxd4+ {[%emt 0:01:08]} 37. Rxd4 {[%emt 0:00:25]} gxf6 {[%emt 0:00:17]} 38. Rxd3 {[%emt 0:00:35]} Bxd3 {[%emt 0:00:09]} 39. Rd1 {[%emt 0:00:15]} Bc4 {[%emt 0:00:54]} 40. exf6 {[%emt 0:00:00]} Bd5 {[%emt 0:00:00]} 41. Kf2 {[%emt 0:03:32]} Kh7 {[%emt 0:00:52]} 42. Ke3 {[%emt 0:02:25]} Kg6 {[%emt 0:00:27]} 43. Kd4 {[%emt 0:01:19]} Kxf6 {[%emt 0:00:17]} 44. Ra1 {[%emt 0:01:07]} Bb4 45. Rf1+ {[%emt 0:00:29]} Kg6 {[%emt 0:00:33]} 46. Rf4 {[%emt 0:05:40]} f5 {[%emt 0:00:45]} 47. Rf2 {[%emt 0:02:14]} Kg5 {[%emt 0:00:07]} 48. Re2 {[%emt 0:01:44]} Kg4 {[%emt 0:00:21]} 49. Re3 {[%emt 0:01:21]} h5 {[%emt 0:01:11]} 50. Ke5 {[%emt 0:01:00]} Bc5 {[%emt 0:00:25]} 51. Rc3 {[%emt 0:02:19]} Bf2 {[%emt 0:00:30]} 52. Rc8 {[%emt 0:00:18]} Bxg3+ {[%emt 0:00:08]} 53. Kf6 {[%emt 0:00:22]} Bxg2 {[%emt 0:00:18]} 54. Kxe6 {[%emt 0:01:17]} f4 {[%emt 0:00:07]} 55. Rg8+ {[%emt 0:00:23]} Kh3 {[%emt 0:00:13]} 56. Rg5 {[%emt 0:00:20]} h4 {[%emt 0:00:08]} 57. Rxa5 {[%emt 0:01:07]} f3 {[%emt 0:00:01]} 58. Rf5 {[%emt 0:01:59]} f2 {[%emt 0:00:03]} 59. b4 {[%emt 0:00:05]} f1=Q {[%emt 0:00:09]} 60. Rxf1 {[%emt 0:00:05]} Bxf1 {[%emt 0:00:06]} 0-1

[Event "IIFL Wealth 4th Mumbai Open"]
[Site "Mumbai"]
[Date "2019.01.07"]
[Round "9"]
[White "Bhagyashree, Patil"]
[Black "Kohad Dipesh"]
[Result "1-0"]
[ECO "C05"]
[WhiteElo "1758"]
[BlackElo "1683"]
[Annotator "NA RC"]
[PlyCount "101"]
[EventDate "2018.12.30"]
[EventType "swiss"]
[EventCountry "IND"]
[SourceTitle "playchess.com"]
[Source "ChessBase"]
[SourceQuality "1"]
[TimeControl "40/5400+30:1800+30"]

1. e4 e6 2. d4 d5 3. Nd2 Nf6 4. e5 Nfd7 5. f4 c5 6. c3 Nc6 7. Ndf3 Qb6 8. Ne2 cxd4 9. cxd4 Bb4+ 10. Bd2 Be7 11. Rb1 f6 12. a3 fxe5 13. fxe5 O-O 14. Qc2 Qd8 15. Qd3 Nb6 16. g3 Nc4 17. Bg2 Nxd2 18. Qxd2 Na5 19. O-O Bd7 20. Nf4 Nc4 21. Qd3 g5 22. Ne2 Be8 23. Qb3 g4 24. Nh4 Rxf1+ 25. Rxf1 Nd2 26. Qxb7 Nxf1 27. Bxf1 Bxh4 28. gxh4 Rb8 29. Qxa7 Rxb2 30. Qc5 Qxh4 31. a4 Qg5 32. Qc3 Rb8 33. a5 Qd8 34. Nf4 Bf7 35. a6 Qb6 36. Be2 Qb3 37. Qxb3 Rxb3 38. Nd3 Ra3 39. Nc5 h5 40. Bb5 Ra5 41. Nb3 Ra3 42. Nc5 Ra1+ 43. Kf2 Ra5 44. Bc6 Kf8 45. Kg3 Ke7 46. Kh4 Kd8 47. Nb7+ Kc7 48. Nxa5 Kb6 49. Bb7 Be8 50. Nb3 Bb5 51. Nc5 1-0

[Event "IIFL Wealth 4th Mumbai Open"]
[Site "Mumbai"]
[Date "2019.01.07"]
[Round "9"]
[White "Shivasubramanian R"]
[Black "Bheri Yaswanth"]
[Result "1-0"]
[ECO "A45"]
[WhiteElo "1738"]
[BlackElo "1550"]
[Annotator "NA RC"]
[PlyCount "51"]
[EventDate "2018.12.30"]
[EventType "swiss"]
[EventCountry "IND"]
[SourceTitle "playchess.com"]
[Source "ChessBase"]
[SourceQuality "1"]
[TimeControl "40/5400+30:1800+30"]

1. d4 {[%emt 0:00:00]} Nf6 {[%emt 0:00:00]} 2. Bf4 {[%emt 0:00:00]} e6 {[%emt 0:00:14]} 3. e3 {[%emt 0:00:10]} d5 {[%emt 0:00:31]} 4. Nd2 {[%emt 0:00:06]} Bd6 {[%emt 0:00:28]} 5. Bg3 {[%emt 0:00:12]} O-O {[%emt 0:00:27]} 6. Bd3 {[%emt 0:00:10]} c5 {[%emt 0:00:49]} 7. c3 {[%emt 0:00:06]} Nc6 {[%emt 0:00:46]} 8. Ngf3 {[%emt 0:03:19]} Re8 {[%emt 0:02:58]} 9. Ne5 {[%emt 0:00:59]} cxd4 {[%emt 0:01:29]} 10. exd4 {[%emt 0:00:52]} Bxe5 {[%emt 0:03:52]} 11. dxe5 {[%emt 0:00:54]} Nd7 {[%emt 0:04:31]} 12. Qh5 {[%emt 0:04:41]} g6 {[%emt 0:01:18]} 13. Qe2 {[%emt 0:00:06]} Nc5 {[%emt 0:01:28]} 14. Nf3 {[%emt 0:05:23]} Qb6 {[%emt 0:05:10]} 15. Rd1 {[%emt 0:19:38]} Nxd3+ {[%emt 0:09:43]} 16. Rxd3 {[%emt 0:00:58]} Ne7 {[%emt 0:00:34]} 17. Bh4 {[%emt 0:02:53]} Nf5 {[%emt 0:29:28]} 18. Bf6 {[%emt 0:02:40]} d4 {[%emt 0:03:01]} 19. Nxd4 {[%emt 0:00:52]} Nxd4 {[%emt 0:04:51]} 20. Rxd4 {[%emt 0:00:22]} Qc5 {[%emt 0:00:47]} 21. Rd6 {[%emt 0:02:06]} h6 {[%emt 0:00:44]} 22. O-O {[%emt 0:01:35]} b5 {[%emt 0:00:45]} 23. Rfd1 {[%emt 0:00:27]} Bb7 {[%emt 0:00:21]} 24. R1d4 {[%emt 0:01:20]} Bd5 {[%emt 0:10:21]} 25. Qd2 {[%emt 0:00:22]} Kh7 {[%emt 0:00:05]} 26. Qxh6+ {[%emt 0:00:06]} 1-0

[Event "IIFL Wealth 4th Mumbai Open"]
[Site "Mumbai"]
[Date "2019.01.07"]
[Round "9"]
[White "Pawar, Harshit"]
[Black "Bhaskar, N S"]
[Result "0-1"]
[ECO "B00"]
[WhiteElo "1719"]
[BlackElo "1463"]
[Annotator "NA RC"]
[PlyCount "185"]
[EventDate "2018.12.30"]
[EventType "swiss"]
[EventCountry "IND"]
[SourceTitle "playchess.com"]
[Source "ChessBase"]
[SourceQuality "1"]
[TimeControl "40/5400+30:1800+30"]

1. e4 b6 2. d4 Bb7 3. Bd3 e6 4. Nf3 Nf6 5. Qe2 d5 6. e5 Nfd7 7. c3 Be7 8. h4 h6 9. h5 c5 10. O-O Nc6 11. a3 Rc8 12. b4 cxd4 13. cxd4 O-O 14. Bd2 Re8 15. Nc3 Nf8 16. Kh2 f6 17. Bb5 fxe5 18. Bxc6 Bxc6 19. Nxe5 Bf6 20. Bf4 Bxe5 21. Bxe5 Nd7 22. Bg3 Qf6 23. Rad1 e5 24. dxe5 Nxe5 25. Nxd5 Qg5 26. Kg1 Ng4 27. Qa2 Kh8 28. Nf4 Ne3 29. Ng6+ Kh7 30. fxe3 Qxg3 31. Rf2 Qxe3 32. Qf7 Qg5 33. Rdf1 Be4 34. Qxa7 Qxh5 35. Nf4 Qb5 36. Qf7 Rf8 37. Qe7 Rce8 38. Qc7 Qg5 39. Nh3 Qg6 40. Nf4 Qg4 41. Qc1 Rf7 42. Qe3 b5 43. Qd2 Ree7 44. Qd6 Qg3 45. Qd2 Qxa3 46. Nh5 Rxf2 47. Rxf2 Qa1+ 48. Rf1 Qe5 49. Qd8 Bg6 50. Nf4 Qe3+ 51. Kh2 Bf5 52. Kh1 Qe5 53. Qb6 Rd7 54. Qf2 Qd4 55. Qe1 Qe4 56. Qxe4 Bxe4 57. Rf2 Rd1+ 58. Kh2 Rb1 59. Ne6 Rxb4 60. Rf4 Rc4 61. Rf7 b4 62. Rxg7+ Kh8 63. Rg3 Bc2 64. Nf8 b3 65. Ng6+ Bxg6 66. Rxb3 Be4 67. Rg3 Kh7 68. Rg4 Bd5 69. Rg3 Rc6 70. Rd3 Be4 71. Re3 Re6 72. Rb3 Kg6 73. Rb5 Bf5 74. Rb8 Kg5 75. Rb4 Re2 76. Rb3 h5 77. Rg3+ Bg4 78. Ra3 Kf4 79. Rb3 h4 80. Kg1 Bf5 81. Rf3+ Kg4 82. Kf1 Ra2 83. Re3 Rd2 84. Re8 Bd3+ 85. Kg1 Bf5 86. Rg8+ Kf4 87. Rh8 Kg3 88. Rg8+ Bg4 89. Rf8 Rxg2+ 90. Kh1 Rf2 91. Rf6 Rf4 92. Rxf4 {Kf2 Rf5+} Bf5 93. Kg1 {Kg3} 0-1

[Event "IIFL Wealth 4th Mumbai Open"]
[Site "Mumbai"]
[Date "2019.01.07"]
[Round "9"]
[White "Sawant, Akshay"]
[Black "Krishna Malay"]
[Result "0-1"]
[ECO "B23"]
[WhiteElo "1716"]
[BlackElo "1505"]
[Annotator "NA RC"]
[PlyCount "86"]
[EventDate "2018.12.30"]
[EventType "swiss"]
[EventCountry "IND"]
[SourceTitle "playchess.com"]
[Source "ChessBase"]
[SourceQuality "1"]
[TimeControl "40/5400+30:1800+30"]

1. e4 c5 {[%emt 0:22:35]} 2. Nc3 {[%emt 0:00:00]} a6 {[%emt 0:00:23]} 3. a4 {[%emt 0:00:00]} e6 {[%emt 0:04:33]} 4. Bc4 {[%emt 0:00:30]} b6 {[%emt 0:06:54]} 5. Nf3 {[%emt 0:10:18]} Bb7 {[%emt 0:00:40]} 6. O-O {[%emt 0:00:11]} d5 {[%emt 0:02:21]} 7. exd5 {[%emt 0:00:37]} exd5 {[%emt 0:00:30]} 8. Re1+ {[%emt 0:00:22]} Be7 {[%emt 0:00:22]} 9. Ba2 {[%emt 0:01:01]} Nf6 {[%emt 0:01:11]} 10. d4 {[%emt 0:15:12]} O-O {[%emt 0:04:40]} 11. Bg5 {[%emt 0:02:26]} c4 {[%emt 0:08:22]} 12. Ne2 {[%emt 0:03:58]} b5 {[%emt 0:04:49]} 13. c3 {[%emt 0:01:49]} h6 {[%emt 0:05:00]} 14. Bxf6 {[%emt 0:07:29]} Bxf6 {[%emt 0:00:18]} 15. Ng3 {[%emt 0:00:35]} g6 {[%emt 0:02:34]} 16. Bb1 Nc6 {[%emt 0:02:49]} 17. axb5 {[%emt 0:04:03]} axb5 {[%emt 0:00:03]} 18. Rxa8 {[%emt 0:00:02]} Qxa8 {[%emt 0:03:03]} 19. h4 {[%emt 0:02:06]} h5 {[%emt 0:02:29]} 20. Qe2 {[%emt 0:24:55]} Qd8 {[%emt 0:03:15]} 21. Qc2 {[%emt 0:06:09]} Re8 {[%emt 0:05:06]} 22. Rxe8+ {[%emt 0:00:04]} Qxe8 {[%emt 0:00:02]} 23. Ne2 {[%emt 0:03:46]} b4 {[%emt 0:06:05]} 24. Nf4 {[%emt 0:01:29]} b3 {[%emt 0:00:32]} 25. Qd2 {[%emt 0:03:47]} Nd8 {[%emt 0:01:46]} 26. Kh2 {[%emt 0:04:55]} Bc6 {[%emt 0:00:53]} 27. Ng5 {[%emt 0:03:57]} Bxg5 {[%emt 0:08:52]} 28. hxg5 {[%emt 0:00:06]} Qe7 {[%emt 0:00:20]} 29. Ne2 {[%emt 0:01:41]} Bd7 {[%emt 0:01:23]} 30. Qe3 {[%emt 0:01:43]} Qxe3 {[%emt 0:01:58]} 31. fxe3 {[%emt 0:00:02]} Ne6 {[%emt 0:00:48]} 32. Kg3 {[%emt 0:01:46]} Nxg5 {[%emt 0:00:33]} 33. Kf4 {[%emt 0:00:04]} f6 {[%emt 0:00:27]} 34. Bxg6 {[%emt 0:00:04]} Ne6+ {[%emt 0:00:24]} 35. Kg3 {[%emt 0:00:36]} Ng5 {[%emt 0:00:27]} 36. Nf4 {[%emt 0:00:31]} Kg7 {[%emt 0:00:35]} 37. Bxh5 {[%emt 0:00:51]} Ne4+ {[%emt 0:00:14]} 38. Kf3 {[%emt 0:01:20]} Nxc3 {[%emt 0:00:05]} 39. Kf2 {[%emt 0:00:31]} Ne4+ {[%emt 0:00:22]} 40. Ke1 {[%emt 0:00:00]} c3 {[%emt 0:00:00]} 41. Nd3 {[%emt 0:02:11]} Bb5 {[%emt 0:00:42]} 42. Be2 {[%emt 0:01:13]} Bxd3 {[%emt 0:02:33]} 43. Bxd3 {[%emt 0:00:06]} cxb2 0-1

[Event "IIFL Wealth 4th Mumbai Open"]
[Site "Mumbai"]
[Date "2019.01.07"]
[Round "9"]
[White "Deepak, Rai"]
[Black "Vahdatian, Davood"]
[Result "1/2-1/2"]
[ECO "A45"]
[WhiteElo "1710"]
[BlackElo "2036"]
[Annotator "NA"]
[PlyCount "198"]
[EventDate "2018.12.30"]
[EventType "swiss"]
[EventCountry "IND"]
[SourceTitle "playchess.com"]
[Source "ChessBase"]
[SourceQuality "1"]
[TimeControl "40/5400+30:1800+30"]

1. d4 {[%emt 0:00:00]} Nf6 {[%emt 0:04:45]} 2. Bf4 {[%emt 0:00:00]} Nh5 {[%emt 0:00:54]} 3. Bg5 {[%emt 0:01:53]} h6 {[%emt 0:00:03]} 4. Bh4 {[%emt 0:00:21]} g5 {[%emt 0:00:01]} 5. e3 {[%emt 0:05:07]} Nf6 {[%emt 0:00:07]} 6. Bg3 {[%emt 0:00:20]} d6 {[%emt 0:00:01]} 7. Nc3 {[%emt 0:02:45]} c6 {[%emt 0:02:55]} 8. h4 {[%emt 0:02:17]} Bg7 {[%emt 0:02:48]} 9. e4 {[%emt 0:06:56]} g4 {[%emt 0:03:21]} 10. Be2 {[%emt 0:05:23]} Qa5 $11 {[%emt 0:12:00]} (10... Qb6 $5 {[%cal Rb6b2]} 11. Rb1 Be6 $11) 11. Qd2 {[%emt 0:04:01]} Nh5 {[%emt 0:00:49]} 12. Bh2 {[%emt 0:03:31]} Bf6 {[%emt 0:01:34]} 13. g3 {[%emt 0:03:21]} Ng7 {[%emt 0:01:47]} 14. f4 {[%emt 0:02:22]} gxf3 {[%emt 0:04:10]} 15. Bxf3 {[%emt 0:02:37]} Nd7 {[%emt 0:03:35]} 16. O-O-O {[%emt 0:04:16]} c5 {[%emt 0:02:22]} 17. Nge2 {[%emt 0:05:11]} cxd4 {[%emt 0:00:57]} 18. Nxd4 {[%emt 0:00:32]} Ne5 {[%emt 0:00:15]} 19. Be2 {[%emt 0:00:50]} Nc6 {[%emt 0:04:20]} 20. Bg1 {[%emt 0:05:06]} Ne6 {[%emt 0:02:47]} 21. Nf5 {[%emt 0:07:56]} Nc5 {[%emt 0:09:31]} 22. Bxc5 {[%emt 0:15:22]} Bxc3 {[%emt 0:01:17]} 23. Qxc3 {[%emt 0:06:43]} Qxc3 {[%emt 0:00:08]} 24. bxc3 {[%emt 0:00:04]} dxc5 {[%emt 0:00:22]} 25. Rhf1 {[%emt 0:01:09]} a6 {[%emt 0:08:44]} 26. Bh5 {[%emt 0:03:30]} Rh7 {[%emt 0:01:33]} 27. Ne3 {[%emt 0:02:28]} Be6 {[%emt 0:04:58]} 28. Nd5 {[%emt 0:01:07]} O-O-O {[%emt 0:00:57]} 29. Rf4 {[%emt 0:02:35]} Bxd5 {[%emt 0:01:53]} 30. exd5 {[%emt 0:00:33]} Ne5 {[%emt 0:00:24]} 31. Rf5 {[%emt 0:01:13]} Ng6 {[%emt 0:05:42]} 32. Rdf1 {[%emt 0:00:23]} Nh8 {[%emt 0:03:01]} 33. Bxf7 {[%emt 0:00:33]} Nxf7 {[%emt 0:00:42]} 34. Rxf7 {[%emt 0:00:05]} Rxf7 {[%emt 0:00:43]} 35. Rxf7 {[%emt 0:00:06]} Kd7 {[%emt 0:00:04]} 36. Rg7 {[%emt 0:02:06]} Rf8 {[%emt 0:00:20]} 37. Kb2 {[%emt 0:01:06]} c4 {[%emt 0:04:06]} 38. g4 {[%emt 0:01:06]} Rf4 {[%emt 0:04:14]} 39. Rg6 {[%emt 0:00:42]} h5 {[%emt 0:00:43]} 40. gxh5 {[%emt 0:00:00]} Rxh4 {[%emt 0:00:00]} 41. Rg5 {[%emt 0:05:48]} Rh3 {[%emt 0:00:21]} 42. a4 {[%emt 0:01:02]} a5 {[%emt 0:03:10]} 43. Rf5 {[%emt 0:01:07]} Kd6 {[%emt 0:00:48]} 44. Rg5 {[%emt 0:00:19]} Rf3 {[%emt 0:01:01]} 45. Rg4 {[%emt 0:04:55]} Rh3 {[%emt 0:11:30]} 46. Rg5 {[%emt 0:00:46]} Rf3 {[%emt 0:04:43]} 47. Rg4 {[%emt 0:00:16]} Kxd5 {[%emt 0:02:25]} 48. Rh4 {[%emt 0:00:15]} Rf7 {[%emt 0:00:01]} 49. h6 {[%emt 0:00:08]} Rh7 {[%emt 0:00:01]} 50. Kc1 {[%emt 0:00:21]} Ke5 {[%emt 0:02:24]} 51. Kd2 {[%emt 0:00:42]} Kf5 {[%emt 0:00:11]} 52. Ke3 {[%emt 0:01:27]} Kg5 {[%emt 0:00:42]} 53. Rxc4 {[%emt 0:02:19]} Rxh6 {[%emt 0:00:03]} 54. Rc5+ {[%emt 0:00:05]} Kf6 {[%emt 0:00:18]} 55. Rxa5 {[%emt 0:00:14]} Rh3+ {[%emt 0:00:18]} 56. Kd2 {[%emt 0:01:59]} e5 {[%emt 0:00:48]} 57. Rb5 {[%emt 0:00:08]} Rh7 {[%emt 0:00:08]} 58. a5 {[%emt 0:02:33]} Kf5 {[%emt 0:00:08]} 59. Ke3 {[%emt 0:00:19]} Rc7 {[%emt 0:02:16]} 60. Rb3 {[%emt 0:00:46]} Rd7 {[%emt 0:01:15]} 61. Rb6 {[%emt 0:01:26]} Rg7 {[%emt 0:01:52]} 62. Rb5 {[%emt 0:00:43]} Rh7 {[%emt 0:00:26]} 63. Rb6 {[%emt 0:01:15]} Rh3+ {[%emt 0:00:27]} 64. Kd2 {[%emt 0:02:17]} Rh2+ {[%emt 0:00:16]} 65. Ke3 {[%emt 0:00:31]} Rh7 {[%emt 0:13:54]} 66. Rb5 {[%emt 0:00:13]} Rh3+ {[%emt 0:00:57]} 67. Kd2 {[%emt 0:00:10]} Kf4 {[%emt 0:00:19]} 68. Rxb7 {[%emt 0:00:53]} Rh2+ {[%emt 0:00:01]} 69. Kd3 {[%emt 0:02:44]} e4+ {[%emt 0:01:11]} 70. Kc4 {[%emt 0:00:39]} e3 {[%emt 0:01:32]} 71. a6 {[%emt 0:01:47]} Rh5 {[%emt 0:01:10]} 72. Re7 {[%emt 0:01:28]} Ra5 {[%emt 0:00:30]} 73. a7 {[%emt 0:01:31]} Kf3 {[%emt 0:00:37]} 74. Kb4 {[%emt 0:01:42]} Ra1 {[%emt 0:00:08]} 75. Kb5 {[%emt 0:00:28]} e2 {[%emt 0:00:22]} 76. Kb6 {[%emt 0:00:16]} Rb1+ {[%emt 0:01:41]} 77. Ka6 {[%emt 0:01:28]} Ra1+ {[%emt 0:00:17]} 78. Kb7 {[%emt 0:00:08]} Rb1+ {[%emt 0:00:45]} 79. Kc7 {[%emt 0:00:23]} Ra1 {[%emt 0:00:12]} 80. Kb8 {[%emt 0:00:30]} Rb1+ {[%emt 0:00:13]} 81. Kc8 {[%emt 0:01:21]} Ra1 {[%emt 0:00:05]} 82. Kb8 {[%emt 0:00:42]} Rb1+ {[%emt 0:00:02]} 83. Kc8 {[%emt 0:00:13]} Ra1 {[%emt 0:00:03]} 84. Kb7 {[%emt 0:00:11]} Rb1+ {[%emt 0:00:02]} 85. Ka6 {[%emt 0:00:11]} Ra1+ {[%emt 0:00:02]} 86. Kb7 {[%emt 0:00:19]} Rb1+ {[%emt 0:00:02]} 87. Kc8 {[%emt 0:00:16]} Ra1 {[%emt 0:00:02]} 88. Kb8 {[%emt 0:01:51]} Rb1+ {[%emt 0:00:02]} 89. Kc8 {[%emt 0:00:11]} Ra1 {[%emt 0:00:02]} 90. Kb8 {[%emt 0:00:43]} Rb1+ {[%emt 0:00:01]} 91. Kc8 {[%emt 0:00:10]} Ra1 {[%emt 0:00:01]} 92. Kb8 {[%emt 0:00:17]} Rb1+ {[%emt 0:00:01]} 93. Kc8 {[%emt 0:00:12]} Ra1 {[%emt 0:00:02]} 94. Kb8 {[%emt 0:00:32]} Rb1+ {[%emt 0:00:01]} 95. Kc8 {[%emt 0:00:08]} Ra1 {[%emt 0:00:02]} 96. Kb8 {[%emt 0:00:08]} Rb1+ {[%emt 0:00:01]} 97. Kc8 {[%emt 0:00:13]} Ra1 {[%emt 0:00:01]} 98. Kb8 {[%emt 0:00:16]} Rb1+ {[%emt 0:00:01]} 99. Kc8 {[%emt 0:00:07]} Ra1 {[%emt 0:00:01]} 1/2-1/2

[Event "IIFL Wealth 4th Mumbai Open"]
[Site "Mumbai"]
[Date "2019.01.07"]
[Round "9"]
[White "Shetye, Shyam"]
[Black "Negi Augustiya"]
[Result "1-0"]
[ECO "B84"]
[WhiteElo "1685"]
[BlackElo "1521"]
[Annotator "NA RC"]
[PlyCount "73"]
[EventDate "2018.12.30"]
[EventType "swiss"]
[EventCountry "IND"]
[SourceTitle "playchess.com"]
[Source "ChessBase"]
[SourceQuality "1"]
[TimeControl "40/5400+30:1800+30"]

1. e4 c5 2. Nc3 a6 3. Nf3 d6 4. d4 cxd4 5. Nxd4 Nf6 6. Be2 e6 7. O-O Be7 8. a4 Qc7 9. f4 Nc6 10. Be3 O-O 11. Kh1 Bd7 12. Nb3 b6 13. Bf3 Bc8 14. Qe1 Bb7 15. Qf2 Nd7 16. Rad1 Rfe8 17. g4 Bf8 18. g5 Nc5 19. Bg2 g6 20. Qh4 Nd7 21. Rf3 Bg7 22. Rh3 Nf8 23. f5 Bxc3 24. f6 h5 25. bxc3 e5 26. Bf3 Bc8 27. Rg3 Kh8 28. Rdg1 Nd8 29. Bxh5 gxh5 30. Qxh5+ Nh7 31. g6 fxg6 32. Rxg6 Qf7 33. Bh6 Be6 34. Bg7+ Kg8 35. Qh4 Bxb3 36. Qxh7+ Kxh7 37. Rh6+ {Rh8} 1-0

[Event "IIFL Wealth 4th Mumbai Open"]
[Site "Mumbai"]
[Date "2019.01.07"]
[Round "9"]
[White "Mayank Chakraborty"]
[Black "Mishra, Sanjeev"]
[Result "1/2-1/2"]
[ECO "C65"]
[WhiteElo "1677"]
[BlackElo "1662"]
[Annotator "NA RC"]
[PlyCount "169"]
[EventDate "2018.12.30"]
[EventType "swiss"]
[EventCountry "IND"]
[SourceTitle "playchess.com"]
[Source "ChessBase"]
[SourceQuality "1"]
[TimeControl "40/5400+30:1800+30"]

1. e4 {[%emt 0:00:00]} e5 {[%emt 0:00:00]} 2. Nf3 {[%emt 0:00:00]} Nc6 {[%emt 0:00:00]} 3. Bb5 {[%emt 0:00:05]} Nf6 {[%emt 0:00:00]} 4. O-O {[%emt 0:00:25]} Bc5 {[%emt 0:00:00]} 5. Re1 {[%emt 0:00:24]} d6 {[%emt 0:00:02]} 6. c3 {[%emt 0:00:21]} O-O {[%emt 0:00:34]} 7. h3 {[%emt 0:00:20]} Bb6 {[%emt 0:00:22]} 8. d4 {[%emt 0:00:23]} h6 {[%emt 0:03:37]} 9. Be3 {[%emt 0:06:00]} Bd7 {[%emt 0:03:28]} 10. Bd3 {[%emt 0:07:20]} Re8 {[%emt 0:01:33]} 11. Nbd2 {[%emt 0:01:18]} exd4 {[%emt 0:27:22]} 12. cxd4 {[%emt 0:00:09]} Nb4 {[%emt 0:05:10]} 13. Bb1 {[%emt 0:00:26]} Nc6 {[%emt 0:17:12]} 14. a3 {[%emt 0:02:14]} Ne7 {[%emt 0:01:32]} 15. Nf1 {[%emt 0:01:11]} Ng6 {[%emt 0:00:44]} 16. Ng3 {[%emt 0:00:28]} Bc6 {[%emt 0:01:05]} 17. Nd2 {[%emt 0:01:40]} a5 {[%emt 0:06:19]} 18. Bd3 {[%emt 0:01:35]} a4 {[%emt 0:01:34]} 19. Qc2 {[%emt 0:02:39]} Nf8 {[%emt 0:04:21]} 20. Rac1 {[%emt 0:02:10]} Ba5 {[%emt 0:00:22]} 21. Re2 {[%emt 0:00:49]} Bxd2 {[%emt 0:01:28]} 22. Bxd2 {[%emt 0:00:19]} d5 {[%emt 0:05:12]} 23. e5 {[%emt 0:00:30]} Ne4 {[%emt 0:03:00]} 24. Nxe4 {[%emt 0:02:20]} dxe4 {[%emt 0:00:02]} 25. Bxe4 Ne6 {[%emt 0:06:38]} 26. Be3 {[%emt 0:01:37]} Nxd4 {[%emt 0:01:53]} 27. Bxd4 {[%emt 0:00:09]} Qxd4 {[%emt 0:00:03]} 28. Bxc6 {[%emt 0:00:12]} bxc6 {[%emt 0:00:02]} 29. Qxc6 {[%emt 0:00:03]} Rab8 {[%emt 0:00:35]} 30. Rce1 {[%emt 0:01:44]} Re6 {[%emt 0:01:47]} 31. Qxc7 {[%emt 0:01:07]} Rxb2 {[%emt 0:01:25]} 32. Rxb2 {[%emt 0:01:02]} Qxb2 {[%emt 0:00:04]} 33. Qc5 {[%emt 0:00:19]} Qd2 {[%emt 0:01:29]} 34. Re3 {[%emt 0:01:21]} Rg6 {[%emt 0:02:06]} 35. Qc8+ {[%emt 0:00:17]} Kh7 {[%emt 0:00:04]} 36. Qf5 {[%emt 0:00:21]} Kg8 {[%emt 0:01:12]} 37. Qe4 {[%emt 0:02:22]} Qd1+ {[%emt 0:01:09]} 38. Kh2 {[%emt 0:01:44]} Qf1 {[%emt 0:00:51]} 39. Rg3 {[%emt 0:01:26]} Rxg3 {[%emt 0:01:27]} 40. Kxg3 {[%emt 0:00:00]} Qd1 {[%emt 0:00:00]} 41. Qe3 {[%emt 0:00:56]} Qb3 {[%emt 0:01:04]} 42. Kh2 {[%emt 0:02:20]} g5 {[%emt 0:03:11]} 43. Qc5 {[%emt 0:01:09]} Kg7 {[%emt 0:01:16]} 44. Qe7 {[%emt 0:01:48]} Qb6 {[%emt 0:02:07]} 45. Kg3 {[%emt 0:01:44]} Qb3+ {[%emt 0:07:28]} 46. f3 {[%emt 0:00:42]} Qe3 {[%emt 0:00:42]} 47. Qf6+ {[%emt 0:00:50]} Kg8 {[%emt 0:00:02]} 48. Kg4 {[%emt 0:00:34]} Qd4+ 49. f4 {[%emt 0:00:45]} Qd1+ {[%emt 0:04:00]} 50. Kg3 {[%emt 0:00:29]} Qd3+ {[%emt 0:00:23]} 51. Kh2 {[%emt 0:00:11]} gxf4 {[%emt 0:01:02]} 52. Qxf4 {[%emt 0:00:36]} Qxa3 {[%emt 0:01:08]} 53. Qxh6 {[%emt 0:00:31]} Qe7 {[%emt 0:04:10]} 54. Qf4 {[%emt 0:00:54]} a3 {[%emt 0:00:20]} 55. Qg4+ {[%emt 0:00:09]} Kf8 {[%emt 0:03:07]} 56. Qc8+ {[%emt 0:00:20]} Kg7 {[%emt 0:00:14]} 57. Qg4+ {[%emt 0:00:29]} Kh6 {[%emt 0:02:26]} 58. Qf4+ {[%emt 0:00:34]} Kg6 {[%emt 0:02:15]} 59. Qg3+ {[%emt 0:01:25]} Kf5 {[%emt 0:00:58]} 60. Qf3+ {[%emt 0:00:11]} Kxe5 {[%emt 0:00:39]} 61. Qe3+ {[%emt 0:00:08]} Kf6 {[%emt 0:00:25]} 62. Qh6+ {[%emt 0:00:34]} Kf5 {[%emt 0:01:03]} 63. Qh5+ {[%emt 0:00:42]} Ke6 {[%emt 0:00:49]} 64. Qe2+ {[%emt 0:00:08]} Kd7 {[%emt 0:01:00]} 65. Qb5+ {[%emt 0:00:09]} Ke6 {[%emt 0:01:50]} 66. Qe2+ {[%emt 0:02:27]} Kf6 {[%emt 0:01:32]} 67. Qf3+ {[%emt 0:00:24]} Kg6 {[%emt 0:01:50]} 68. Qg3+ {[%emt 0:01:22]} Kf6 {[%emt 0:00:34]} 69. Qh4+ {[%emt 0:00:18]} Ke6 {[%emt 0:00:10]} 70. Qe4+ {[%emt 0:00:09]} Kd6 {[%emt 0:01:05]} 71. Qb4+ {[%emt 0:00:16]} Kd7 {[%emt 0:00:07]} 72. Qb7+ {[%emt 0:00:18]} Ke6 {[%emt 0:00:47]} 73. Qe4+ {[%emt 0:00:07]} Kd7 {[%emt 0:00:56]} 74. Qb7+ {[%emt 0:00:08]} Ke8 {[%emt 0:00:05]} 75. Qa8+ {[%emt 0:00:17]} Kd7 {[%emt 0:00:04]} 76. Qb7+ {[%emt 0:00:08]} Kd6 {[%emt 0:00:07]} 77. Qb4+ {[%emt 0:00:05]} Ke6 {[%emt 0:00:11]} 78. Qe4+ {[%emt 0:00:05]} Kf6 {[%emt 0:00:14]} 79. Qh4+ {[%emt 0:00:06]} Ke6 {[%emt 0:00:03]} 80. Qe4+ {[%emt 0:00:13]} Kd7 {[%emt 0:00:11]} 81. Qb7+ {[%emt 0:00:12]} Kd8 {[%emt 0:00:13]} 82. Qb8+ {[%emt 0:00:05]} Kd7 {[%emt 0:00:05]} 83. Qb7+ {[%emt 0:00:08]} Kd6 {[%emt 0:00:02]} 84. Qb4+ {[%emt 0:00:08]} Ke6 {[%emt 0:00:01]} 85. Qe4+ {[%emt 0:00:10]} 1/2-1/2